[Event "FIDE WSTC Open 50 2025"]
[Site "Prague"]
[Date "2025.02.21"]
[Round "5.9"]
[White "Ehlvest, Jaan"]
[Black "Jirovsky, Milos"]
[Result "1/2-1/2"]
[Annotator "TA"]
[ECO "B31"]
[WhiteElo "2531"]
[BlackElo "2410"]
[PlyCount "127"]
[EventDate "2025.02.17"]
[EventType "team-tourn"]
[EventCountry "CZE"]
[SourceTitle "playchess.com"]
[Source "ChessBase"]
[SourceQuality "1"]
[TimeControl "40/5400+30:1800+30"]

{[%evp 17,127,9,22,0,14,0,25,27,20,22,16,15,14,8,42,29,35,0,0,0,0,-10,9,-16,-33,-41,73,75,55,-75,-12,-181,-140,-230,-236,-335,-335,-312,-294,-758,-771,-712,-261,-218,-251,-197,-108,-195,-204,-264,-254,-229,-216,-217,-163,-305,-300,-333,-333,-319,-318,-382,-220,-220,-220,-229,-29,-229,-229,-229,-229,-229,-111,-115,-111,-111,-111,-111,-111,-111,-111,-111,-111,-111,-111,-111,-111,-111,-111,-111,-111,-111,-111,-111,-111,-111,-111,-111,-111,-111,-111,-111,-111,-111,0,0,0,0,0,0,0,0]} 1. e4 {[%emt 0:00:05]} c5 {[%emt 0:00:07]} 2. Nf3 {[%emt 0:00:07]} Nc6 {[%emt 0:00:04]} 3. Bb5 {[%emt 0:00:10]} g6 {[%emt 0:00:06]} 4. O-O {[%emt 0:00:08]} Bg7 {[%emt 0:00:05]} 5. c3 {[%emt 0:00:25]} Nf6 {[%emt 0:00:28]} 6. Re1 {[%emt 0:00:07]} O-O {[%emt 0:00:14]} 7. d4 {[%emt 0:00:55]} cxd4 {[%emt 0:00:19]} 8. cxd4 {[%emt 0:00:05]} d5 {[%emt 0:00:07]} 9. e5 {[%emt 0:00:16]} Ne4 {[%emt 0:00:07]} 10. Be3 {[%emt 0:00:12] B31: Sicilian: 2...Nc6 3 Bb5 g6.} Bd7 {[%emt 0:05:06][%cal Oc6e5]} 11. Bf1 {[%emt 0:26:06]} Qb6 {[%emt 0:05:28]} 12. Nc3 {[%emt 0:03:18] White has an edge.} Nxc3 {[%emt 0:01:18]} 13. bxc3 {[%emt 0:00:11]} Na5 {[%emt 0:00:43]} 14. Nd2 $146 {[%emt 0:14:01]} ({Predecessor:} 14. Qd2 Rfc8 15. Bh6 Bh8 16. Ng5 Nc4 17. Bxc4 Rxc4 18. Rab1 Qc6 19. Qf4 Be6 20. Qh4 {½-½ Bergsson,S (2095)-Szilardfy,G (2106) Budapest FS07 FM-A 2004 (1)}) 14... Rfc8 {[%emt 0:01:11]} 15. Rc1 {[%emt 0:02:58]} Qe6 {[%emt 0:03:00]} 16. Qf3 {[%emt 0:07:52]} b5 {[%emt 0:07:21]} 17. Nb3 {[%emt 0:05:48]} Nxb3 {[%emt 0:02:06]} 18. axb3 {[%emt 0:00:06][%cal Oc3c4]} a5 {[%emt 0:02:44]} 19. Bg5 {[%emt 0:07:02]} Rab8 {[%emt 0:08:00]} 20. c4 {[%emt 0:02:24]} bxc4 {[%emt 0:03:42]} 21. bxc4 {[%emt 0:00:06]} Bc6 {[%emt 0:00:14]} (21... dxc4 $15 {stays ahead.} 22. d5 Qf5 23. Qxf5 gxf5) 22. Qa3 $16 {[%emt 0:04:35][%csl LRa5,LRe7] White is more active.} dxc4 {[%emt 0:04:00][%csl Oa5,Oc4] Black has weak pawns} 23. Bxe7 {[%emt 0:06:05]} (23. Rxc4 $14 Bd5 24. Rxc8+ Rxc8 25. Qxa5) 23... Bd5 $1 $17 {[%emt 0:06:23] Black wants to play ...Bh6.} 24. Bc5 $2 {[%emt 0:01:20]} (24. Qxa5 $11 {and White stays safe.} Bh6 25. Rc2) 24... Bh6 $19 {[%emt 0:05:19]} 25. Rc2 {[%emt 0:11:25] Against Bd2} (25. Qxa5 $17 Bxc1 26. Rxc1) 25... Qf5 {[%emt 0:04:27]} 26. Qa4 {[%emt 0:00:08] [#]} (26. Rce2 Rb3 27. Qxa5) 26... c3 $1 {[%emt 0:02:20][%mdl 512]} 27. Rxc3 {[%emt 0:05:37][%cal Oa4c2] [#]} Bd2 $1 {[%emt 0:00:08][%csl LRc3,LRe1]} 28. Rcc1 {[%emt 0:00:26]} (28. Bd3 $2 Qg4 (28... Qg5 $2 29. Be4 $19) 29. Bf1 Bxe1 $19 (29... Bxc3 $2 30. h3 $19)) (28. Qa1) 28... Bxc1 {[%emt 0:01:28]} 29. Rxc1 {[%emt 0:00:07]} Rb1 $2 {[%emt 0:00:17]} (29... Rb2 30. f3 Qg5) 30. Rxb1 {[%emt 0:01:33]} Qxb1 $40 {[%emt 0:00:04][%mdl 128] Black wants a kill.} 31. Qd7 {[%emt 0:00:25]} Qb7 {[%emt 0:01:10]} (31... Be6 $19 32. Qa4 h6) 32. Qd6 {[%emt 0:00:11]} (32. Qxb7 $17 Bxb7 33. Bc4) 32... Qc6 {[%emt 0:00:51]} 33. Qe7 {[%emt 0:00:08]} Re8 {[%emt 0:00:55]} 34. Qg5 {[%emt 0:01:17]} a4 {[%emt 0:00:57]} 35. h4 {[%emt 0:01:46]} Qe6 {[%emt 0:02:36]} 36. Bb5 {[%emt 0:00:25]} (36. f3 {was called for.}) 36... Ra8 {[%emt 0:01:55]} 37. Bxa4 {[%emt 0:00:28]} f6 {[%emt 0:00:20]} (37... Rxa4 38. Qd8+) 38. exf6 {[%emt 0:00:32]} (38. Qh6 Qg4 (38... Rxa4 39. Qf8#) 39. Kf1 (39. f3 $2 Bxf3 40. Bb3+ Kh8 $19) 39... Qxg2+ (39... Rxa4 40. Qf8#) 40. Ke1 Qg1+ (40... Rxa4 41. Qf8#) 41. Ke2 fxe5 $19 (41... Rxa4 42. Qf8#) (41... Qg4+ $2 42. Kd2 $19)) 38... Rxa4 {[%emt 0:00:59]} 39. f7+ {[%emt 0:00:06]} Qxf7 {[%emt 0:07:10]} (39... Kxf7 $142 {White must now prevent ...Ra8.} 40. Qh6 Ke8 (40... Ra1+ $2 41. Kh2 $19) 41. Qf8+ Kd7) 40. Qd8+ {[%emt 0:00:15]} Kg7 {[%emt 0:00:10] ( -> ...Ra1+)} 41. Bd6 {[%emt 0:07:26]} Ra1+ {[%emt 0:02:49]} (41... Rxd4 42. Be5+) 42. Kh2 {[%emt 0:00:34] [#]} Re1 {[%emt 0:00:30]} (42... Qxf2 43. Be5+ Kf7 44. Qxd5+ Ke8 45. Qg8+ Qf8 46. Qxh7 $11) 43. Be5+ {[%emt 0:00:29] [#]} Rxe5 $1 {[%emt 0:00:14]} 44. dxe5 {[%emt 0:00:04]} h5 {[%emt 0:00:41]} (44... Qf4+ $19 {has better winning chances.} 45. Kg1 Qxe5) 45. Kg1 {[%emt 0:05:16]} Kh7 {[%emt 0:01:52]} 46. f3 {[%emt 0:01:47]} Qa7+ {[%emt 0:01:49]} 47. Kh2 {[%emt 0:00:21]} Bf7 {[%emt 0:00:35]} 48. Qf6 {[%emt 0:01:27]} Qd7 {[%emt 0:00:27]} 49. Qf4 {[%emt 0:00:57]} Be6 {[%emt 0:01:44]} 50. Qb4 {[%emt 0:02:00]} Qf7 {[%emt 0:00:55]} 51. Qd4 {[%emt 0:00:45]} Bd7 {[%emt 0:02:17]} 52. Kg1 {[%emt 0:00:34]} Bc6 {[%emt 0:02:20]} 53. Kh2 {[%emt 0:01:08]} Kg8 {[%emt 0:05:03]} 54. Qd8+ {[%emt 0:01:44]} Kg7 {[%emt 0:00:52]} 55. Qd4 {[%emt 0:00:28] Prevents Qf4+} Qe6 {[%emt 0:03:21]} 56. Qf4 {[%emt 0:00:38]} Bd7 {[%emt 0:01:50]} 57. Kg3 {[%emt 0:01:47]} Qf7 {[%emt 0:05:08]} 58. Qd4 {[%emt 0:00:40] Threatening mate with e6+.} Bf5 {[%emt 0:01:46]} 59. Kh2 {[%emt 0:02:38]} Qd7 {[%emt 0:03:32]} 60. Qf4 {[%emt 0:01:51]} Kf7 {[%emt 0:00:48]} ({Black should play} 60... Qe7 $17 61. Qd4 Qc7) 61. g4 $11 {[%emt 0:01:38] The position is equal.} Qd1 {[%emt 0:04:19]} 62. gxf5 {[%emt 0:00:34]} Qe2+ $1 {[%emt 0:00:07]} 63. Kg3 {[%emt 0:00:14] Hoping for fxg6+.} Qe1+ {[%emt 0:00:07]} 64. Kg2 {Weighted Error Value: White=0.37/Black=0.25 (precise)   Loses game:     	White=2     	---        Mistake:       	White=6     	Black=5      Inaccurate:     	White=1     	Black=1      OK:         	White=12    	Black=17     Best:        	White=5     	Black=6      Strong:       	---       	Black=3      Brilliant:      	---       	Black=2} 1/2-1/2

[Event "FIDE WSTC Open 50 2025"]
[Site "Prague"]
[Date "2025.02.21"]
[Round "5.10"]
[White "Zvara, Petr"]
[Black "Shabalov, Alexander"]
[Result "0-1"]
[Annotator "TA"]
[ECO "B06"]
[WhiteElo "2330"]
[BlackElo "2471"]
[PlyCount "100"]
[EventDate "2025.02.17"]
[EventType "team-tourn"]
[EventCountry "CZE"]
[SourceTitle "playchess.com"]
[Source "ChessBase"]
[SourceQuality "1"]
[TimeControl "40/5400+30:1800+30"]

{[%evp 20,100,-11,-16,-7,-16,-18,-12,-10,-18,-18,-32,-8,-24,-9,-27,-8,-5,3,-5,0,0,0,0,0,-14,0,-25,6,-35,-41,-31,-25,-81,-70,-65,-74,-76,-73,-78,-77,-89,-70,-88,-61,-78,-78,-92,-52,-63,-65,-52,-33,-71,-70,-68,-70,-68,-69,-76,-76,-77,-80,-108,-110,-155,-139,-151,-63,-60,-18,-18,-25,-364,-350,-2132,-2081,-5097,-5093,-5093,-4133,-5077,-5065]} 1. e4 {[%emt 0:00:03]} g6 {[%emt 0:01:24]} 2. d4 {[%emt 0:00:12]} Bg7 {[%emt 0:00:05]} 3. Nc3 {[%emt 0:00:53]} c6 {[%emt 0:00:27]} 4. Nf3 {[%emt 0:07:09]} d5 {[%emt 0:00:11]} 5. h3 {[%emt 0:00:38]} Nf6 {[%emt 0:01:52]} 6. Bd3 {[%emt 0:00:09]} dxe4 {[%emt 0:04:03]} 7. Nxe4 {[%emt 0:00:06]} Nxe4 {[%emt 0:01:00]} 8. Bxe4 {[%emt 0:00:05]} Nd7 {[%emt 0:00:11]} 9. O-O {[%emt 0:02:27]} O-O {[%emt 0:00:24]} 10. Bf4 {[%emt 0:05:37]} c5 {[%emt 0:01:26]} 11. c3 {[%emt 0:02:55]} cxd4 {[%emt 0:01:42] B15: Caro-Kann: 3 Nc3: 3...g6 and 3...dxe4 4 Nxe4 Nf6 5 Nxf6+ exf6.} 12. cxd4 {[%emt 0:00:24]} Nf6 {[%emt 0:00:38]} 13. Bd3 {[%emt 0:10:18]} Be6 {[%emt 0:02:35] The position is equal.} 14. Qd2 $146 {[%emt 0:08:46]} ({Predecessor:} 14. Re1 Bd5 15. Be5 Rc8 16. Nh2 Qb6 17. Qd2 Rfd8 18. b3 h5 19. Nf1 Qc6 20. Rac1 {1-0 Draganic,V (2289)-Raicevic,M (2359) MNT-chT Herceg Novi 2008 (4)}) 14... Bd5 {[%emt 0:04:26] ...Bxf3 is in the air} 15. Ne5 {[%emt 0:00:55]} Qb6 {[%emt 0:00:47]} 16. Be3 {[%emt 0:02:43]} Rfd8 {[%emt 0:00:40]} 17. a3 {[%emt 0:10:36]} a5 {[%emt 0:17:36]} 18. Rac1 {[%emt 0:04:07]} a4 {[%emt 0:02:42]} 19. Rfe1 {[%emt 0:18:20]} e6 {[%emt 0:14:24]} 20. Bg5 {[%emt 0:05:00] Qf4 would now be deadly.} Bb3 {[%emt 0:02:45]} (20... Qxd4 $6 21. Nxf7 Rd7 (21... Ne4 22. Rxe4 Bxe4 23. Nxd8 $18) 22. Ne5 $16) 21. Nf3 {[%emt 0:02:33]} Rd7 {[%emt 0:03:06]} 22. Qf4 {[%emt 0:03:54]} Nh5 {[%emt 0:06:08]} 23. Qh4 {[%emt 0:01:03]} e5 {[%emt 0:07:12][%cal Re5d4]} (23... Bxd4 {simplifies} 24. Nxd4 Qxd4 25. Qxd4 Rxd4 26. Bf1 Rd7) 24. Bf5 {[%emt 0:03:57]} gxf5 {[%emt 0:04:30]} 25. Qxh5 {[%emt 0:00:04]} exd4 {[%emt 0:01:13]} 26. Ne5 {[%emt 0:03:15] Against Qg6} (26. Nh4 $1 $11) 26... Bxe5 $1 $17 {[%emt 0:05:05]} 27. Rxe5 {[%emt 0:00:04]} Qg6 $36 {[%emt 0:00:11][%mdl 2048] Black is on the roll.} 28. Qxg6+ {[%emt 0:06:14]} (28. Qh4 $2 f6 29. Bxf6 d3 $19) 28... hxg6 {[%emt 0:01:18]} 29. Bd2 {[%emt 0:00:32]} Kg7 {[%emt 0:01:30]} 30. Kf1 {[%emt 0:00:08]} Kf6 {[%emt 0:03:47]} 31. f4 {[%emt 0:00:26]} Ra6 {[%emt 0:03:00]} 32. Ke2 {[%emt 0:01:05]} Re6 {[%emt 0:01:00]} 33. Rcc5 {[%emt 0:01:01]} b5 {[%emt 0:00:17]} 34. Be1 {[%emt 0:00:52]} Rxe5+ {[%emt 0:03:44]} 35. Rxe5 $15 {[%emt 0:00:03][%mdl 4096] Endgame KRB-KRB. Black is a pawn up.} g5 {[%emt 0:02:32]} 36. Bd2 {[%emt 0:00:46]} Rc7 {[%emt 0:01:38]} 37. g4 {[%emt 0:00:34]} fxg4 {[%emt 0:00:37]} 38. hxg4 {[%emt 0:00:03]} Rc2 {[%emt 0:00:41][%csl LRb2,LRf4]} 39. Rxg5 {[%emt 0:00:46]} Rxb2 {[%emt 0:00:43][%cal Ob5b4] Black is more active.} (39... Bc4+ 40. Kd1 d3 (40... Rxb2 41. Bb4 $17) 41. Bc3+ Ke7 42. Re5+ Kd6 43. Ke1) 40. Ke1 {[%emt 0:00:45]} Rb1+ {[%emt 0:01:21]} 41. Kf2 {[%emt 0:30:16]} Bc4 $1 {[%emt 0:31:35]} 42. Rc5 {[%emt 0:00:00]} Ke6 {[%emt 0:00:00]} 43. Re5+ {[%emt 0:00:00]} Kd7 {[%emt 0:00:00]} (43... Kd6 $1 $17 {Strongly threatening ...Rb2.} 44. Bb4+ Kc6) 44. Re4 {[%emt 0:00:00]} d3 {[%emt 0:00:00]} ({Much less strong is} 44... Rf1+ 45. Kg3 $17) 45. Rd4+ {[%emt 0:00:00]} Kc6 {[%emt 0:00:00]} 46. Rd8 $2 {[%emt 0:00:00][%mdl 8192] Now White is beyond hope.} (46. Ke3 $1 $11 {and White has nothing to worry.}) 46... Rb3 $1 $19 {[%emt 0:00:00]} 47. Bb4 $2 {[%emt 0:00:00] [#]} (47. g5 Rxa3 48. f5) 47... Rxb4 $1 {[%emt 0:00:00] Black is clearly winning.} 48. axb4 {[%emt 0:00:00] [#]} (48. Ke3 Rb2) 48... Kc7 $1 {[%emt 0:00:00]} 49. Rh8 {[%emt 0:00:00]} d2 {[%emt 0:00:00]} 50. Rh1 {[%emt 0:00:00] [#]} Bb3 $1 {[%emt 0:00:00] Weighted Error Value: White=0.47/Black=0.08 (flawless)   Loses game:     	White=1     	---        Mistake:       	White=2     	Black=1      Inaccurate:     	White=4     	Black=4      OK:         	White=11    	Black=14     Best:        	White=4     	Black=1      Strong:       	---       	Black=3      Brilliant:      	---       	Black=1} 0-1

[Event "FIDE WSTC Open 50 2025"]
[Site "Prague"]
[Date "2025.02.21"]
[Round "5.11"]
[White "Novikov, Igor"]
[Black "Konopka, Michal"]
[Result "1/2-1/2"]
[Annotator "TA"]
[ECO "D56"]
[WhiteElo "2490"]
[BlackElo "2326"]
[PlyCount "89"]
[EventDate "2025.02.17"]
[EventType "team-tourn"]
[EventCountry "CZE"]
[SourceTitle "playchess.com"]
[Source "ChessBase"]
[SourceQuality "1"]
[TimeControl "40/5400+30:1800+30"]

{[%evp 20,88,20,16,22,24,15,0,15,14,31,26,32,28,27,15,16,17,17,17,19,12,12,9,12,3,27,0,27,31,37,8,39,25,29,4,27,25,47,25,28,25,55,67,78,48,52,42,31,40,54,37,24,17,24,14,20,14,22,6,51,29,68,80,39,0,0,0,70,0,10]} 1. d4 {[%emt 0:00:03]} d5 {[%emt 0:00:27]} 2. c4 {[%emt 0:00:16]} e6 {[%emt 0:00:07]} 3. Nf3 {[%emt 0:00:12]} Nf6 {[%emt 0:00:29]} 4. Nc3 {[%emt 0:00:23]} Be7 {[%emt 0:00:36]} 5. Bg5 {[%emt 0:00:39]} h6 {[%emt 0:00:50]} 6. Bh4 {[%emt 0:00:18]} O-O {[%emt 0:00:17]} 7. e3 {[%emt 0:00:33]} Ne4 {[%emt 0:00:38]} 8. Bxe7 {[%emt 0:04:31]} Qxe7 {[%emt 0:00:09]} 9. Rc1 {[%emt 0:00:35]} c6 {[%emt 0:03:27]} 10. Bd3 {[%emt 0:03:06]} Nxc3 {[%emt 0:03:00]} 11. Rxc3 {[%emt 0:00:09]} dxc4 $1 {[%emt 0:00:34] 11...dxc4 scores better than 11...Nd7. D56: Queen's Gambit Declined: Lasker Defence.} 12. Bxc4 {[%emt 0:01:19]} Nd7 {[%emt 0:00:24]} 13. Qc2 {[%emt 0:04:54]} e5 {[%emt 0:06:50][%cal Be6e5,Be5e4][%mdl 32]} 14. O-O {[%emt 0:03:39]} e4 {[%emt 0:07:20]} 15. Nd2 {[%emt 0:00:24]} Nf6 {[%emt 0:00:09]} 16. Bb3 {[%emt 0:04:32]} Re8 {[%emt 0:04:53]} 17. Rc5 {[%emt 0:04:31]} Be6 {[%emt 0:01:15]} 18. Re5 {[%emt 0:08:49]} ({But not} 18. Nxe4 Nd7 (18... Nxe4 19. Qxe4 Bxb3 20. Qxe7 $16) 19. Rc3 (19. Bxe6 $2 Qxe6 20. Ng3 Nxc5 $19) 19... Bxb3 20. Rxb3 Qxe4 $15) 18... Bxb3 {[%emt 0:11:05]} 19. Qxb3 {[%emt 0:17:24]} Qc7 {[%emt 0:04:10]} 20. Rxe8+ {[%emt 0:07:07]} Rxe8 {[%emt 0:00:20][%cal Ba8e8,Be8e6,Be6d6][%mdl 32]} 21. Rc1 {[%emt 0:00:10]} Ng4 $146 {[%emt 0:08:28]} ({Predecessor:} 21... Re6 22. h3 Qe7 23. Nc4 Nd5 24. a3 Rg6 25. Ne5 Re6 26. Qc2 a6 27. b4 f6 28. Nc4 Qf7 29. Qb2 Qe7 30. Qb3 Kh7 31. Rb1 Qd7 32. Rc1 {½-½ Kuta,M (2130)-Leiner,R (2245) CZE-chT B4 corr 2000}) 22. Nf1 {[%emt 0:01:05]} Qd7 {[%emt 0:04:00]} 23. Qa3 {[%emt 0:06:41]} b6 {[%emt 0:14:47]} 24. b4 {[%emt 0:04:08]} Re6 {[%emt 0:01:38]} 25. Rc2 {[%emt 0:01:56]} Qe7 {[%emt 0:06:06][%cal Oa7a5]} 26. Qb3 {[%emt 0:00:48]} Nf6 {[%emt 0:02:39]} 27. b5 {[%emt 0:02:09]} cxb5 {[%emt 0:02:18]} 28. Qxb5 {[%emt 0:00:04]} Rd6 {[%emt 0:00:22]} 29. Rc8+ {[%emt 0:06:10]} Kh7 {[%emt 0:00:13]} 30. a4 {[%emt 0:05:26]} Qb7 {[%emt 0:06:03]} 31. Qc4 {[%emt 0:03:28]} Qd5 {[%emt 0:00:28]} 32. Qc2 {[%emt 0:00:35]} g6 {[%emt 0:05:14]} 33. Ng3 {[%emt 0:02:01][%cal Bf1g3,Bg3e2,Be2f4][%mdl 32]} Kg7 {[%emt 0:02:21]} 34. h3 {[%emt 0:00:23]} Rd7 {[%emt 0:00:42]} 35. Rc6 {[%emt 0:01:53]} h5 {[%emt 0:00:54]} 36. Ne2 {[%emt 0:01:07]} Rd6 {[%emt 0:00:54]} 37. Rc8 {[%emt 0:00:40]} Rd8 {[%emt 0:00:32] Successful Defense Black} 38. Rc7 {[%emt 0:02:16]} Rd7 {[%emt 0:00:22]} 39. Rc4 {[%emt 0:02:05]} Re7 {[%emt 0:02:34]} (39... h4 {simplifies} 40. Qc3 b5 41. axb5 Qxb5 42. Qb4 Qxb4 43. Rxb4 Nd5) 40. Rc8 {[%emt 0:01:48]} Rd7 {[%emt 0:00:53]} 41. Nf4 {[%emt 0:05:26]} Qa5 {[%emt 0:02:41]} 42. Kh2 {[%emt 0:02:13]} Qf5 {[%emt 0:05:14]} 43. Kg1 {[%emt 0:03:50]} (43. Rc6 $11) 43... Qa5 $14 {[%emt 0:01:20]} 44. Kh2 {[%emt 0:07:11] White is more active.} (44. Qb2 $14 Nd5 (44... Qxa4 45. d5 $11) 45. Nxd5 Qxd5 46. Re8) 44... Qf5 $11 {[%emt 0:01:24]} 45. Kg1 {[%emt 0:01:07] Weighted Error Value: White=0.12 (very precise) /Black=0.09 (flawless)   Mistake:       	White=2     	---        Inaccurate:     	White=4     	Black=5      OK:         	White=8     	Black=10     Best:        	---       	Black=4} 1/2-1/2

[Event "FIDE WSTC Open 50 2025"]
[Site "Prague"]
[Date "2025.02.21"]
[Round "5.12"]
[White "Trickov, Vasil"]
[Black "Rachels, Stuart"]
[Result "1/2-1/2"]
[Annotator "TA"]
[ECO "D26"]
[WhiteElo "2301"]
[BlackElo "2466"]
[PlyCount "96"]
[EventDate "2025.02.17"]
[EventType "team-tourn"]
[EventCountry "CZE"]
[SourceTitle "playchess.com"]
[Source "ChessBase"]
[SourceQuality "1"]
[TimeControl "40/5400+30:1800+30"]

{[%evp 19,96,0,-11,-14,-15,-6,-5,-27,-11,-33,0,-28,-37,-27,-29,-66,-32,-53,-57,-97,-53,-44,-41,-51,-42,-63,7,-89,-83,-85,-77,-87,-92,-90,-80,-91,-49,-44,-41,-39,-34,-48,-25,-50,-66,-58,-41,-40,-22,-55,-23,-61,-44,-48,-58,-60,-11,-81,-39,-83,-79,-80,-66,-85,-58,-54,-60,-40,-32,-142,-43,-103,-113,-146,0,0,0,0,0]} 1. d4 {[%emt 0:00:16]} d5 {[%emt 0:00:09]} 2. Nf3 {[%emt 0:00:27]} Nf6 {[%emt 0:00:10]} 3. c4 {[%emt 0:00:52]} dxc4 {[%emt 0:00:09]} 4. e3 {[%emt 0:01:24]} e6 {[%emt 0:00:19]} 5. Bxc4 {[%emt 0:00:33]} a6 {[%emt 0:00:13]} 6. O-O {[%emt 0:02:09]} b5 {[%emt 0:00:05]} 7. Bb3 {[%emt 0:03:42]} Bb7 {[%emt 0:00:11]} 8. Qe2 {[%emt 0:05:16]} c5 {[%emt 0:01:24]} 9. Rd1 {[%emt 0:02:10]} Nbd7 {[%emt 0:00:25]} 10. a4 {[%emt 0:01:20]} Be7 {[%emt 0:07:28]} 11. dxc5 {[%emt 0:10:59] D29: Queen's Gambit Accepted: Classical main line: 7 Qe2 with early ...Nbd7.} b4 {[%emt 0:13:46]} 12. Bc4 $146 {[%emt 0:18:56][%cal Oc5c6]} (12. Ne5 {with more complications.} Qc7 13. c6 Bxc6 14. Nxc6 Qxc6 15. Bc4) ({Predecessor:} 12. c6 Bxc6 13. Nd4 Bb7 14. Nd2 Nc5 15. Bc4 O-O 16. N2f3 Qc7 17. Bd2 a5 18. Rac1 Qb6 {0-1 Papagorasz,T (2262)-Fancsy,I (2399) Szekesfehervar Cup 2004 (7)}) 12... Qc7 {[%emt 0:08:55]} 13. Nbd2 {[%emt 0:06:05]} O-O {[%emt 0:01:34] Black sacrificed a pawn} 14. b3 {[%emt 0:03:49][%cal Oc5c6]} Nd5 {[%emt 0:13:43]} 15. Bb2 {[%emt 0:10:05]} Nc3 {[%emt 0:02:32]} 16. Bxc3 {[%emt 0:01:18]} bxc3 {[%emt 0:00:05]} 17. Nf1 {[%emt 0:01:10]} Nxc5 {[%emt 0:04:32]} 18. Rac1 {[%emt 0:02:54]} Ne4 {[%emt 0:04:04]} 19. Ne1 {[%emt 0:06:52][%cal Bf3e1,Be1c2,Bc2d4][%mdl 32]} Bf6 {[%emt 0:01:47]} 20. Nc2 {[%emt 0:04:46]} Rfc8 {[%emt 0:01:19]} 21. Nd4 {[%emt 0:00:51]} Qa5 {[%emt 0:02:36]} 22. Qc2 {[%emt 0:01:43]} Bd5 {[%emt 0:11:14] A strong pair of Bishops.} (22... Be7 $15) 23. f3 {[%emt 0:04:13]} (23. Bxd5 $11 {keeps the balance.} Qxd5 (23... exd5 24. Rd3 $11) 24. f3) 23... Bxc4 $17 {[%emt 0:04:32]} 24. bxc4 {[%emt 0:00:28]} Nc5 {[%emt 0:00:32]} 25. Qxc3 {[%emt 0:00:27]} Qxc3 {[%emt 0:00:43]} 26. Rxc3 {[%emt 0:00:32]} Nxa4 {[%emt 0:00:03]} 27. Rc2 {[%emt 0:01:34]} Rab8 {[%emt 0:03:12]} 28. Nd2 {[%emt 0:01:43]} Nc5 {[%emt 0:01:31]} 29. Ra1 {[%emt 0:01:14]} Rb6 {[%emt 0:01:15]} 30. Ra3 {[%emt 0:03:19]} Be7 {[%emt 0:08:02]} 31. Ra1 {[%emt 0:01:32]} g5 {[%emt 0:00:50]} 32. Kf1 {[%emt 0:01:20]} f5 {[%emt 0:00:46]} 33. Ke2 {[%emt 0:00:28]} Kf7 {[%emt 0:00:03]} 34. Rb1 {[%emt 0:01:42]} Rcb8 {[%emt 0:00:37]} 35. Rcc1 {[%emt 0:00:44]} Rb2 {[%emt 0:01:53]} 36. Rxb2 {[%emt 0:00:05]} Rxb2 {[%emt 0:00:03]} 37. Rc2 {[%emt 0:00:07]} Rb6 {[%emt 0:00:52]} (37... Rxc2 $15 38. Nxc2 h5) 38. Rc1 {[%emt 0:00:08]} (38. Ra2 $11) 38... Ke8 {[%emt 0:02:34]} 39. Rb1 {[%emt 0:00:08]} Rxb1 {[%emt 0:00:47]} 40. Nxb1 {[%emt 0:00:02][%mdl 4096] Endgame KBN-KNN} Kd7 {[%emt 0:00:16]} 41. Nd2 {[%emt 0:32:00]} Bd8 {[%emt 0:32:10]} 42. g4 {[%emt 0:00:00]} fxg4 {[%emt 0:00:00]} 43. fxg4 {[%emt 0:00:00]} a5 {[%emt 0:00:00]} 44. N2b3 {[%emt 0:00:00] [#]} ({White should play} 44. Kd1 $15) 44... Bb6 {[%emt 0:00:00]} ({Black should try} 44... Nxb3 $1 $17 45. Nxb3 Kd6 46. c5+ Kd5) 45. Nxc5+ {[%emt 0:00:00]} (45. Nd2 $15) 45... Bxc5 {[%emt 0:00:00]} 46. Nb3 {[%emt 0:00:00][%csl LRa5,LRc5] [#]} Bb4 {[%emt 0:00:00]} (46... Bb6 $1 $17 {...a4 would now be deadly.} 47. c5 Bc7) 47. Nc1 $1 $11 {[%emt 0:00:00]} a4 {[%emt 0:00:00]} 48. Kd1 {[%emt 0:00:00]} Bd6 {[%emt 0:00:00] Weighted Error Value: White=0.24 (precise) /Black=0.21 (precise)   Mistake:       	White=4     	Black=4      Inaccurate:     	White=6     	Black=7      OK:         	White=9     	Black=12     Best:        	White=1     	Black=2      Strong:       	White=1     	---} 1/2-1/2